[Event "*** Titled Tuesday Blitz"]
[Site "Chess.com"]
[Date "2020.04.07"]
[Round "4"]
[White "Bad4life"]
[Black "Moon_stone123"]
[Result "0-1"]
[WhiteElo "2315"]
[BlackElo "2491"]
[TimeControl "180+1"]
[EndTime "13:41:08 PDT"]
[Termination "Moon_stone123 won on time"]

1. e4 {[%clk 0:03:00.9]} 1... c5 {[%clk 0:02:59.5]} 2. Nf3 {[%clk 0:03:01.1]}
2... d6 {[%clk 0:03:00]} 3. Bb5+ {[%clk 0:03:01.3]} 3... Bd7 {[%clk 0:02:59.1]}
4. a4 {[%clk 0:03:01.3]} 4... Nc6 {[%clk 0:02:57.2]} 5. O-O {[%clk 0:03:01.1]}
5... g6 {[%clk 0:02:56.9]} 6. Re1 {[%clk 0:03:00.6]} 6... Bg7 {[%clk 0:02:56.6]}
7. c3 {[%clk 0:03:01.1]} 7... Nf6 {[%clk 0:02:53.5]} 8. d4 {[%clk 0:03:01.1]}
8... cxd4 {[%clk 0:02:52.1]} 9. cxd4 {[%clk 0:03:02]} 9... O-O {[%clk
0:02:51.1]} 10. Nc3 {[%clk 0:03:02.1]} 10... a6 {[%clk 0:02:49.1]} 11. Bc4
{[%clk 0:02:57.8]} 11... Rc8 {[%clk 0:02:47.8]} 12. h3 {[%clk 0:02:56.9]} 12...
Na5 {[%clk 0:02:40]} 13. Bf1 {[%clk 0:02:49.6]} 13... Be6 {[%clk 0:02:08.5]} 14.
Bg5 {[%clk 0:02:39.1]} 14... Bc4 {[%clk 0:02:06.9]} 15. e5 {[%clk 0:02:05.3]}
15... Bxf1 {[%clk 0:01:42.3]} 16. exf6 {[%clk 0:01:53.3]} 16... exf6 {[%clk
0:01:42.3]} 17. Bh4 {[%clk 0:01:38.9]} 17... Bc4 {[%clk 0:01:38.6]} 18. Ne4
{[%clk 0:01:22.8]} 18... Bd5 {[%clk 0:01:37]} 19. Nc3 {[%clk 0:01:17.6]} 19...
Be6 {[%clk 0:01:26.9]} 20. d5 {[%clk 0:01:11.9]} 20... Bf5 {[%clk 0:01:26]} 21.
Nd4 {[%clk 0:01:10.2]} 21... Qd7 {[%clk 0:01:23.5]} 22. Qf3 {[%clk 0:01:02.4]}
22... Nc4 {[%clk 0:01:13.7]} 23. g4 {[%clk 0:00:50]} 23... Ne5 {[%clk
0:01:09.4]} 24. Qg3 {[%clk 0:00:34.2]} 24... Rc4 {[%clk 0:00:35.1]} 25. Rad1
{[%clk 0:00:20]} 25... Rxd4 {[%clk 0:00:26.9]} 26. Rxd4 {[%clk 0:00:19.7]} 26...
Bc2 {[%clk 0:00:27.4]} 27. f4 {[%clk 0:00:16.6]} 27... Nd3 {[%clk 0:00:27.4]}
28. Rxd3 {[%clk 0:00:16.3]} 28... Bxd3 {[%clk 0:00:28.3]} 29. Qxd3 {[%clk
0:00:16.9]} 29... f5 {[%clk 0:00:25.6]} 30. Re7 {[%clk 0:00:15]} 30... Qc8
{[%clk 0:00:24.7]} 31. Kg2 {[%clk 0:00:12.3]} 31... Qc5 {[%clk 0:00:23.2]} 32.
gxf5 {[%clk 0:00:12]} 32... Qb4 {[%clk 0:00:21.6]} 33. f6 {[%clk 0:00:11.5]}
33... Bh6 {[%clk 0:00:19]} 34. Re4 {[%clk 0:00:10.1]} 34... Qxb2+ {[%clk
0:00:18.3]} 35. Re2 {[%clk 0:00:10.5]} 35... Qb4 {[%clk 0:00:18.4]} 36. Bg5
{[%clk 0:00:10.1]} 36... Bxg5 {[%clk 0:00:16.7]} 37. fxg5 {[%clk 0:00:11]} 37...
h6 {[%clk 0:00:16.4]} 38. gxh6 {[%clk 0:00:10.9]} 38... Qf4 {[%clk 0:00:16.4]}
39. Ne4 {[%clk 0:00:09.4]} 39... Qxh6 {[%clk 0:00:15.9]} 40. Nxd6 {[%clk
0:00:09.3]} 40... Qg5+ {[%clk 0:00:15.8]} 41. Qg3 {[%clk 0:00:09.8]} 41... Qxf6
{[%clk 0:00:15.6]} 42. Ne4 {[%clk 0:00:07.8]} 42... Qd4 {[%clk 0:00:16]} 43. d6
{[%clk 0:00:07.9]} 43... Kg7 {[%clk 0:00:16]} 44. Qf3 {[%clk 0:00:08.1]} 44...
f5 {[%clk 0:00:15.3]} 45. Qd3 {[%clk 0:00:08.3]} 45... Qxd3 {[%clk 0:00:15.1]}
46. Rd2 {[%clk 0:00:04.7]} 46... Qxe4+ {[%clk 0:00:14.6]} 0-1

[Event "*** Titled Tuesday Blitz"]
[Site "Chess.com"]
[Date "2020.04.07"]
[Round "4"]
[White "gmcorrales"]
[Black "HonzaVykouk"]
[Result "0-1"]
[WhiteElo "2808"]
[BlackElo "2635"]
[TimeControl "180+1"]
[EndTime "13:41:09 PDT"]
[Termination "HonzaVykouk won by checkmate"]

1. e4 {[%clk 0:03:00.9]} 1... c5 {[%clk 0:02:59.4]} 2. Nf3 {[%clk 0:03:01.1]}
2... d6 {[%clk 0:02:59.7]} 3. d4 {[%clk 0:03:01.8]} 3... cxd4 {[%clk 0:02:59.6]}
4. Nxd4 {[%clk 0:03:02.7]} 4... Nf6 {[%clk 0:03:00]} 5. Nc3 {[%clk 0:03:03.1]}
5... a6 {[%clk 0:03:00.6]} 6. Be3 {[%clk 0:03:03.3]} 6... e5 {[%clk 0:03:00.1]}
7. Nb3 {[%clk 0:03:03.8]} 7... Be6 {[%clk 0:03:00.7]} 8. f3 {[%clk 0:03:03]}
8... h5 {[%clk 0:03:00.8]} 9. Qd2 {[%clk 0:03:02.8]} 9... Nbd7 {[%clk
0:03:00.6]} 10. Nd5 {[%clk 0:03:03.3]} 10... Bxd5 {[%clk 0:03:00.3]} 11. exd5
{[%clk 0:03:04.2]} 11... g6 {[%clk 0:03:00.1]} 12. Na5 {[%clk 0:03:04]} 12...
Qc7 {[%clk 0:02:59.4]} 13. c4 {[%clk 0:03:03.1]} 13... Bg7 {[%clk 0:02:59.8]}
14. Be2 {[%clk 0:03:02.8]} 14... O-O {[%clk 0:02:59.8]} 15. O-O {[%clk
0:03:02.7]} 15... Rfe8 {[%clk 0:02:59.2]} 16. h3 {[%clk 0:03:02.7]} 16... h4
{[%clk 0:02:50.1]} 17. Rac1 {[%clk 0:02:37.7]} 17... Nh5 {[%clk 0:02:49.3]} 18.
b4 {[%clk 0:02:37.4]} 18... f5 {[%clk 0:02:28.9]} 19. Rfe1 {[%clk 0:02:35.6]}
19... b6 {[%clk 0:02:13.4]} 20. Nc6 {[%clk 0:02:32.6]} 20... Ng3 {[%clk
0:02:09.9]} 21. f4 {[%clk 0:02:14.4]} 21... e4 {[%clk 0:02:02.8]} 22. Bd1 {[%clk
0:02:10.1]} 22... a5 {[%clk 0:01:54.2]} 23. a3 {[%clk 0:01:39.1]} 23... axb4
{[%clk 0:01:54]} 24. axb4 {[%clk 0:01:40]} 24... Ra3 {[%clk 0:01:49]} 25. Bf2
{[%clk 0:01:19.8]} 25... Rea8 {[%clk 0:01:13.5]} 26. Re3 {[%clk 0:01:19.6]}
26... Ra2 {[%clk 0:00:58.4]} 27. Qe1 {[%clk 0:01:18.9]} 27... Nh5 {[%clk
0:00:53.9]} 28. Bxh5 {[%clk 0:01:17]} 28... gxh5 {[%clk 0:00:54.8]} 29. Bxh4
{[%clk 0:01:14.2]} 29... Kh7 {[%clk 0:00:53.9]} 30. Be7 {[%clk 0:01:01.5]} 30...
Rg8 {[%clk 0:00:50]} 31. Qh4 {[%clk 0:01:00.4]} 31... Rxg2+ {[%clk 0:00:44.9]}
32. Kh1 {[%clk 0:01:00.4]} 32... Bh6 {[%clk 0:00:43.9]} 33. Qxh5 {[%clk
0:00:56.6]} 33... R8g6 {[%clk 0:00:16.5]} 34. Qxf5 {[%clk 0:00:50.9]} 34... Qc8
{[%clk 0:00:16.3]} 35. Bg5 {[%clk 0:00:32.9]} 35... Bxg5 {[%clk 0:00:15.8]} 36.
Rxe4 {[%clk 0:00:16.4]} 36... Bh4 {[%clk 0:00:14.9]} 37. Ne7 {[%clk 0:00:12.7]}
37... Bxe7 {[%clk 0:00:13.7]} 38. Rxe7+ {[%clk 0:00:13.6]} 38... Kh6 {[%clk
0:00:14.6]} 39. Qf7 {[%clk 0:00:12]} 39... Qg8 {[%clk 0:00:15.5]} 40. Rxd7
{[%clk 0:00:10.9]} 40... Rg1+ {[%clk 0:00:15]} 41. Rxg1 {[%clk 0:00:07.3]} 41...
Rxg1+ {[%clk 0:00:15.9]} 42. Kh2 {[%clk 0:00:08.2]} 42... Qg2# {[%clk
0:00:16.8]} 0-1

[Event "*** Titled Tuesday Blitz"]
[Site "Chess.com"]
[Date "2020.04.07"]
[Round "4"]
[White "penguingm1"]
[Black "VeraLevel"]
[Result "0-1"]
[WhiteElo "2888"]
[BlackElo "2719"]
[TimeControl "180+1"]
[EndTime "13:41:11 PDT"]
[Termination "VeraLevel won by resignation"]

1. d4 {[%clk 0:03:00.9]} 1... g6 {[%clk 0:02:57.5]} 2. c4 {[%clk 0:03:00.8]}
2... Bg7 {[%clk 0:02:58]} 3. Nc3 {[%clk 0:03:01.4]} 3... d6 {[%clk 0:02:57.6]}
4. e4 {[%clk 0:03:01.6]} 4... Nf6 {[%clk 0:02:58]} 5. Nge2 {[%clk 0:03:01.9]}
5... O-O {[%clk 0:02:56.2]} 6. f3 {[%clk 0:03:02.3]} 6... c5 {[%clk 0:02:53.4]}
7. d5 {[%clk 0:03:02.7]} 7... e6 {[%clk 0:02:53.4]} 8. Ng3 {[%clk 0:03:03]} 8...
a6 {[%clk 0:02:52.7]} 9. a4 {[%clk 0:03:03.1]} 9... h5 {[%clk 0:02:53]} 10. Bg5
{[%clk 0:03:02.9]} 10... Re8 {[%clk 0:02:53.5]} 11. Be2 {[%clk 0:03:03.1]} 11...
exd5 {[%clk 0:02:53]} 12. cxd5 {[%clk 0:03:04]} 12... Qc7 {[%clk 0:02:52.9]} 13.
Qd2 {[%clk 0:03:04.2]} 13... Nh7 {[%clk 0:02:53.5]} 14. Bh6 {[%clk 0:03:04.7]}
14... Bd4 {[%clk 0:02:52.6]} 15. Be3 {[%clk 0:03:04.5]} 15... Bg7 {[%clk
0:02:52.5]} 16. O-O {[%clk 0:03:05]} 16... h4 {[%clk 0:02:52]} 17. Nh1 {[%clk
0:03:05.5]} 17... Nd7 {[%clk 0:02:52.7]} 18. Nf2 {[%clk 0:03:05.6]} 18... Ne5
{[%clk 0:02:51.9]} 19. f4 {[%clk 0:03:05.4]} 19... Nd7 {[%clk 0:02:47.7]} 20.
Rae1 {[%clk 0:02:57.2]} 20... Rb8 {[%clk 0:02:47.4]} 21. e5 {[%clk 0:02:56.5]}
21... dxe5 {[%clk 0:02:46.7]} 22. d6 {[%clk 0:02:56.8]} 22... Qd8 {[%clk
0:02:46.9]} 23. Nfe4 {[%clk 0:02:46.6]} 23... exf4 {[%clk 0:02:22.1]} 24. Bxf4
{[%clk 0:02:44.9]} 24... b5 {[%clk 0:02:22.3]} 25. axb5 {[%clk 0:02:44.8]} 25...
axb5 {[%clk 0:02:22.7]} 26. Bh6 {[%clk 0:01:30.5]} 26... Bd4+ {[%clk 0:02:20.4]}
27. Kh1 {[%clk 0:01:30.4]} 27... h3 {[%clk 0:00:47.5]} 28. Qf4 {[%clk
0:00:34.9]} 28... hxg2+ {[%clk 0:00:29.1]} 29. Kxg2 {[%clk 0:00:35]} 29... f5
{[%clk 0:00:30]} 30. Bxb5 {[%clk 0:00:12.6]} 30... fxe4 {[%clk 0:00:26.2]} 31.
Rxe4 {[%clk 0:00:07.3]} 31... Rxe4 {[%clk 0:00:22.1]} 32. Qxe4 {[%clk
0:00:05.5]} 32... Bb7 {[%clk 0:00:21]} 33. Nd5 {[%clk 0:00:05.7]} 33... Kh8
{[%clk 0:00:12.8]} 34. Rf7 {[%clk 0:00:02.2]} 34... Ndf6 {[%clk 0:00:12.9]} 35.
Bg7+ {[%clk 0:00:01.5]} 35... Kg8 {[%clk 0:00:12.9]} 36. Rxb7 {[%clk 0:00:02.3]}
36... Nxe4 {[%clk 0:00:12.1]} 37. Ne7+ {[%clk 0:00:02]} 37... Kxg7 {[%clk
0:00:12.2]} 38. Nc6+ {[%clk 0:00:01]} 38... Rxb7 {[%clk 0:00:12.7]} 39. Nxd8
{[%clk 0:00:01.6]} 39... Rxb5 {[%clk 0:00:13.3]} 40. d7 {[%clk 0:00:02.5]} 40...
Rxb2+ {[%clk 0:00:12.3]} 41. Kf3 {[%clk 0:00:02.6]} 41... Rb8 {[%clk 0:00:12.9]}
42. Nc6 {[%clk 0:00:02.7]} 42... Rf8+ {[%clk 0:00:11.7]} 43. Kxe4 {[%clk
0:00:03.1]} 43... Bf6 {[%clk 0:00:12.3]} 44. Kd5 {[%clk 0:00:03.2]} 44... Ng5
{[%clk 0:00:13.2]} 45. Kxc5 {[%clk 0:00:03.3]} 45... Nf7 {[%clk 0:00:13.6]} 46.
Kb6 {[%clk 0:00:03.5]} 46... Nd8 {[%clk 0:00:14.5]} 47. Nb4 {[%clk 0:00:03.3]}
47... Rh8 {[%clk 0:00:14.9]} 48. Nd5 {[%clk 0:00:03.9]} 48... Rxh2 {[%clk
0:00:15.3]} 0-1

[Event "*** Titled Tuesday Blitz"]
[Site "Chess.com"]
[Date "2020.04.07"]
[Round "4"]
[White "aquiles88"]
[Black "XiaoKangZhong"]
[Result "1/2-1/2"]
[WhiteElo "2221"]
[BlackElo "2419"]
[TimeControl "180+1"]
[EndTime "13:41:11 PDT"]
[Termination "Game drawn by repetition"]

1. g3 {[%clk 0:03:00]} 1... g6 {[%clk 0:02:59.7]} 2. Bg2 {[%clk 0:03:00.9]} 2...
Bg7 {[%clk 0:03:00.5]} 3. e4 {[%clk 0:03:00.9]} 3... c6 {[%clk 0:02:58.7]} 4.
Nc3 {[%clk 0:02:59.5]} 4... e6 {[%clk 0:02:54.7]} 5. d4 {[%clk 0:02:51.4]} 5...
d5 {[%clk 0:02:54.1]} 6. Nge2 {[%clk 0:02:51.3]} 6... Ne7 {[%clk 0:02:53.8]} 7.
O-O {[%clk 0:02:50.2]} 7... O-O {[%clk 0:02:54.7]} 8. Bg5 {[%clk 0:02:46.9]}
8... h6 {[%clk 0:02:48.2]} 9. Bf4 {[%clk 0:02:45.2]} 9... g5 {[%clk 0:02:37.3]}
10. Be3 {[%clk 0:02:38.5]} 10... f5 {[%clk 0:02:11.7]} 11. exd5 {[%clk
0:02:30.1]} 11... exd5 {[%clk 0:02:08.5]} 12. f4 {[%clk 0:02:24.3]} 12... g4
{[%clk 0:02:07.5]} 13. Qd2 {[%clk 0:02:22.2]} 13... Nd7 {[%clk 0:02:05.6]} 14.
Nc1 {[%clk 0:02:14]} 14... Nf6 {[%clk 0:02:04.3]} 15. Nd3 {[%clk 0:02:13.9]}
15... Ne4 {[%clk 0:01:50.8]} 16. Nxe4 {[%clk 0:02:10.4]} 16... fxe4 {[%clk
0:01:49.7]} 17. Ne5 {[%clk 0:02:10.6]} 17... Bf5 {[%clk 0:01:41.5]} 18. Rae1
{[%clk 0:02:06.3]} 18... a5 {[%clk 0:01:38.3]} 19. c3 {[%clk 0:02:05.5]} 19...
b5 {[%clk 0:01:35.3]} 20. Qe2 {[%clk 0:01:59.3]} 20... h5 {[%clk 0:01:31.6]} 21.
Qd2 {[%clk 0:01:47.6]} 21... Rb8 {[%clk 0:01:29.4]} 22. Rc1 {[%clk 0:01:40.8]}
22... Qd6 {[%clk 0:01:25.3]} 23. Rfd1 {[%clk 0:01:30.6]} 23... Rb6 {[%clk
0:01:17.3]} 24. Bf1 {[%clk 0:01:26.8]} 24... Rfb8 {[%clk 0:01:16.1]} 25. Be2
{[%clk 0:01:25.7]} 25... b4 {[%clk 0:00:50]} 26. c4 {[%clk 0:01:24.5]} 26... Qe6
{[%clk 0:00:44.2]} 27. c5 {[%clk 0:01:21]} 27... R6b7 {[%clk 0:00:44.1]} 28. Ba6
{[%clk 0:01:19.2]} 28... Ra7 {[%clk 0:00:44.2]} 29. Bf1 {[%clk 0:01:18.1]} 29...
Bxe5 {[%clk 0:00:31.1]} 30. fxe5 {[%clk 0:01:17.1]} 30... Bg6 {[%clk 0:00:30.1]}
31. Be2 {[%clk 0:01:10.6]} 31... Nf5 {[%clk 0:00:29.8]} 32. Rf1 {[%clk
0:01:07.3]} 32... Rf7 {[%clk 0:00:29.5]} 33. Rf2 {[%clk 0:01:06.1]} 33... Rbf8
{[%clk 0:00:28.3]} 34. Rcf1 {[%clk 0:01:04.8]} 34... Kg7 {[%clk 0:00:21.9]} 35.
Kg2 {[%clk 0:01:01.9]} 35... Nxe3+ {[%clk 0:00:21.2]} 36. Qxe3 {[%clk
0:01:02.8]} 36... Rxf2+ {[%clk 0:00:21.5]} 37. Rxf2 {[%clk 0:01:02.9]} 37...
Rxf2+ {[%clk 0:00:22.4]} 38. Qxf2 {[%clk 0:01:02.1]} 38... Qe7 {[%clk
0:00:21.3]} 39. Qe3 {[%clk 0:01:01.6]} 39... Be8 {[%clk 0:00:20.7]} 40. Qf4
{[%clk 0:01:00.2]} 40... Kg6 {[%clk 0:00:20.5]} 41. h4 {[%clk 0:00:58.8]} 41...
Kg7 {[%clk 0:00:19.9]} 42. Kf2 {[%clk 0:00:52.9]} 42... Bg6 {[%clk 0:00:19.6]}
43. Ke3 {[%clk 0:00:52.5]} 43... Qf7 {[%clk 0:00:19.7]} 44. Qg5 {[%clk
0:00:47.6]} 44... Qf5 {[%clk 0:00:19.8]} 45. Qe7+ {[%clk 0:00:40.8]} 45... Bf7
{[%clk 0:00:19.9]} 46. Qd6 {[%clk 0:00:33.1]} 46... Qe6 {[%clk 0:00:19.8]} 47.
Qd8 {[%clk 0:00:30.1]} 47... Qg6 {[%clk 0:00:19.4]} 48. Qd6 {[%clk 0:00:23.2]}
48... Qe6 {[%clk 0:00:19.1]} 49. Ba6 {[%clk 0:00:20.1]} 49... Qf5 {[%clk
0:00:18.4]} 50. Be2 {[%clk 0:00:18.2]} 50... Qe6 {[%clk 0:00:18.7]} 1/2-1/2

[Event "*** Titled Tuesday Blitz"]
[Site "Chess.com"]
[Date "2020.04.07"]
[Round "4"]
[White "Kumi29"]
[Black "DinaBelenkaya"]
[Result "1-0"]
[WhiteElo "2442"]
[BlackElo "2245"]
[TimeControl "180+1"]
[EndTime "13:41:12 PDT"]
[Termination "Kumi29 won on time"]

1. d4 {[%clk 0:03:00.9]} 1... Nf6 {[%clk 0:02:55.8]} 2. Bg5 {[%clk 0:03:01]}
2... e6 {[%clk 0:02:55]} 3. Nd2 {[%clk 0:03:00.9]} 3... d5 {[%clk 0:02:42.5]} 4.
e3 {[%clk 0:03:00.9]} 4... c5 {[%clk 0:02:36.6]} 5. c3 {[%clk 0:03:01.3]} 5...
Nc6 {[%clk 0:02:35.9]} 6. Bd3 {[%clk 0:03:01]} 6... Bd6 {[%clk 0:02:32.8]} 7. f4
{[%clk 0:02:59.8]} 7... b6 {[%clk 0:02:30.4]} 8. Ngf3 {[%clk 0:02:59]} 8... Qc7
{[%clk 0:02:30.2]} 9. Ne5 {[%clk 0:02:56]} 9... Bb7 {[%clk 0:02:24]} 10. a4
{[%clk 0:02:51.2]} 10... a6 {[%clk 0:02:20.3]} 11. Qe2 {[%clk 0:02:48]} 11...
Ne7 {[%clk 0:02:06.8]} 12. O-O {[%clk 0:02:25.1]} 12... h6 {[%clk 0:01:47.6]}
13. Bxf6 {[%clk 0:02:05.9]} 13... gxf6 {[%clk 0:01:46.7]} 14. Qh5 {[%clk
0:02:05.9]} 14... Bxe5 {[%clk 0:01:37.7]} 15. fxe5 {[%clk 0:02:04.3]} 15... f5
{[%clk 0:01:37.7]} 16. Qe2 {[%clk 0:01:38.3]} 16... h5 {[%clk 0:01:25.9]} 17.
Rfc1 {[%clk 0:01:32.8]} 17... c4 {[%clk 0:00:52.1]} 18. Bc2 {[%clk 0:01:31.7]}
18... Ng6 {[%clk 0:00:49.6]} 19. Nf3 {[%clk 0:01:26.2]} 19... h4 {[%clk
0:00:45.5]} 20. h3 {[%clk 0:01:22]} 20... Ke7 {[%clk 0:00:37.7]} 21. Rf1 {[%clk
0:01:18.1]} 21... Rag8 {[%clk 0:00:34.5]} 22. Kh1 {[%clk 0:01:17.8]} 22... Nf8
{[%clk 0:00:31.9]} 23. Qf2 {[%clk 0:01:16.7]} 23... Ng6 {[%clk 0:00:26.1]} 24.
Ng1 {[%clk 0:01:16.3]} 24... Qd8 {[%clk 0:00:25.2]} 25. Ne2 {[%clk 0:01:15.9]}
25... Nf8 {[%clk 0:00:23.2]} 26. Nf4 {[%clk 0:01:15.7]} 26... Rg3 {[%clk
0:00:21.5]} 27. Qe2 {[%clk 0:01:11.9]} 27... Ng6 {[%clk 0:00:19.8]} 28. Rf3
{[%clk 0:01:08.2]} 28... Qg8 {[%clk 0:00:19.1]} 29. Rxg3 {[%clk 0:01:03.1]}
29... hxg3 {[%clk 0:00:19]} 30. Rf1 {[%clk 0:01:01.4]} 30... Rh4 {[%clk
0:00:17.8]} 31. Bd1 {[%clk 0:00:54.5]} 31... Qh7 {[%clk 0:00:16.9]} 32. Kg1
{[%clk 0:00:53.4]} 32... Bc6 {[%clk 0:00:15.9]} 33. Qf3 {[%clk 0:00:49.8]} 33...
Be8 {[%clk 0:00:14.9]} 34. Qxg3 {[%clk 0:00:48.8]} 34... Nf8 {[%clk 0:00:05.8]}
35. b3 {[%clk 0:00:38.2]} 35... Qh6 {[%clk 0:00:04.8]} 36. bxc4 {[%clk
0:00:36.8]} 36... dxc4 {[%clk 0:00:04.8]} 37. d5 {[%clk 0:00:36.7]} 37... Bd7
{[%clk 0:00:03.7]} 38. Be2 {[%clk 0:00:32.4]} 38... Ng6 {[%clk 0:00:03.4]} 39.
Bxc4 {[%clk 0:00:24.6]} 39... Nxf4 {[%clk 0:00:02.8]} 40. exf4 {[%clk 0:00:25]}
40... Bxa4 {[%clk 0:00:02.3]} 41. dxe6 {[%clk 0:00:15]} 41... fxe6 {[%clk
0:00:02.1]} 42. Qf3 {[%clk 0:00:14.5]} 42... Qf8 {[%clk 0:00:01.1]} 43. Qb7+
{[%clk 0:00:14.2]} 1-0

[Event "*** Titled Tuesday Blitz"]
[Site "Chess.com"]
[Date "2020.04.07"]
[Round "4"]
[White "DejanNestor64"]
[Black "willc-h99"]
[Result "1-0"]
[WhiteElo "2439"]
[BlackElo "2240"]
[TimeControl "180+1"]
[EndTime "13:41:13 PDT"]
[Termination "DejanNestor64 won on time"]

1. d4 {[%clk 0:02:49.9]} 1... Nf6 {[%clk 0:03:00]} 2. c4 {[%clk 0:02:46.4]} 2...
e6 {[%clk 0:03:00.4]} 3. Nf3 {[%clk 0:02:44.7]} 3... b6 {[%clk 0:02:59.6]} 4.
Nc3 {[%clk 0:02:43.1]} 4... Bb4 {[%clk 0:02:52.3]} 5. Bg5 {[%clk 0:02:40.3]}
5... Bb7 {[%clk 0:02:42.3]} 6. Rc1 {[%clk 0:02:37.9]} 6... h6 {[%clk 0:02:39.4]}
7. Bh4 {[%clk 0:02:37]} 7... O-O {[%clk 0:02:31.6]} 8. e3 {[%clk 0:02:33.9]}
8... d6 {[%clk 0:02:23.3]} 9. Bd3 {[%clk 0:02:32.7]} 9... Nbd7 {[%clk
0:02:22.6]} 10. O-O {[%clk 0:02:31.9]} 10... e5 {[%clk 0:02:19.1]} 11. Nd2
{[%clk 0:02:25.2]} 11... Bxc3 {[%clk 0:02:14.6]} 12. Rxc3 {[%clk 0:02:23.8]}
12... Qe7 {[%clk 0:02:02.9]} 13. Bf5 {[%clk 0:02:22.4]} 13... Bc8 {[%clk
0:01:42.2]} 14. Be4 {[%clk 0:01:55.9]} 14... Rb8 {[%clk 0:01:29.8]} 15. Bc6
{[%clk 0:01:55.2]} 15... g5 {[%clk 0:01:22.8]} 16. Bg3 {[%clk 0:01:53.8]} 16...
Kg7 {[%clk 0:01:18.3]} 17. f4 {[%clk 0:01:48.9]} 17... gxf4 {[%clk 0:01:03.8]}
18. Bh4 {[%clk 0:01:34.2]} 18... Qe6 {[%clk 0:00:53.4]} 19. d5 {[%clk
0:00:51.8]} 19... Qg4 {[%clk 0:00:52.2]} 20. Qe1 {[%clk 0:00:47.6]} 20... Nc5
{[%clk 0:00:43.9]} 21. exf4 {[%clk 0:00:40.9]} 21... exf4 {[%clk 0:00:38.9]} 22.
b4 {[%clk 0:00:31]} 22... Nce4 {[%clk 0:00:26.1]} 23. Nxe4 {[%clk 0:00:23.3]}
23... Nxe4 {[%clk 0:00:27]} 24. Qxe4 {[%clk 0:00:19.6]} 24... Qxh4 {[%clk
0:00:27.2]} 25. Rg3+ {[%clk 0:00:18.9]} 25... Kh8 {[%clk 0:00:15.9]} 26. Rxf4
{[%clk 0:00:18.5]} 26... Qh5 {[%clk 0:00:14.9]} 27. Qe3 {[%clk 0:00:13.4]} 27...
Qe5 {[%clk 0:00:12.1]} 28. Qf2 {[%clk 0:00:12.6]} 28... Qa1+ {[%clk 0:00:11.5]}
29. Qf1 {[%clk 0:00:12.7]} 29... Qxf1+ {[%clk 0:00:12.4]} 30. Rxf1 {[%clk
0:00:12.7]} 30... f5 {[%clk 0:00:12.8]} 31. h3 {[%clk 0:00:12]} 31... f4 {[%clk
0:00:12.6]} 32. Rg6 {[%clk 0:00:11.2]} 32... Kh7 {[%clk 0:00:08]} 33. Re6 {[%clk
0:00:11.1]} 33... Bxe6 {[%clk 0:00:07.9]} 34. dxe6 {[%clk 0:00:11.4]} 34... Rbe8
{[%clk 0:00:07.9]} 35. Bxe8 {[%clk 0:00:09.7]} 35... Rxe8 {[%clk 0:00:08.8]} 36.
Rxf4 {[%clk 0:00:09.8]} 36... Re7 {[%clk 0:00:07.4]} 37. Rf1 {[%clk 0:00:08.5]}
37... Kg6 {[%clk 0:00:07.5]} 38. g4 {[%clk 0:00:09.4]} 38... Rxe6 {[%clk
0:00:07.3]} 39. Rf5 {[%clk 0:00:10]} 39... Re2 {[%clk 0:00:06.4]} 40. Rf4 {[%clk
0:00:09.1]} 40... Rxa2 {[%clk 0:00:06.2]} 41. h4 {[%clk 0:00:08.6]} 41... a5
{[%clk 0:00:04.8]} 42. bxa5 {[%clk 0:00:08.4]} 42... bxa5 {[%clk 0:00:05.4]} 43.
c5 {[%clk 0:00:08.8]} 43... dxc5 {[%clk 0:00:03.9]} 44. Rc4 {[%clk 0:00:08.7]}
1-0

[Event "*** Titled Tuesday Blitz"]
[Site "Chess.com"]
[Date "2020.04.07"]
[Round "4"]
[White "BillCoe"]
[Black "JiangoFett"]
[Result "0-1"]
[WhiteElo "2014"]
[BlackElo "2300"]
[TimeControl "180+1"]
[EndTime "13:41:13 PDT"]
[Termination "JiangoFett won by checkmate"]

1. e4 {[%clk 0:03:00.9]} 1... c5 {[%clk 0:02:57.1]} 2. Nf3 {[%clk 0:03:00.5]}
2... Nc6 {[%clk 0:02:57]} 3. Bb5 {[%clk 0:02:59.3]} 3... e6 {[%clk 0:02:56.7]}
4. c3 {[%clk 0:02:58.5]} 4... Nf6 {[%clk 0:02:54.3]} 5. Qe2 {[%clk 0:02:57.8]}
5... d5 {[%clk 0:02:51.2]} 6. e5 {[%clk 0:02:49.7]} 6... Nd7 {[%clk 0:02:42]} 7.
d4 {[%clk 0:02:47.3]} 7... Be7 {[%clk 0:02:39.2]} 8. O-O {[%clk 0:02:46.1]} 8...
O-O {[%clk 0:02:38.6]} 9. Be3 {[%clk 0:02:34.7]} 9... f6 {[%clk 0:02:26.6]} 10.
exf6 {[%clk 0:02:32.4]} 10... Bxf6 {[%clk 0:02:24.2]} 11. dxc5 {[%clk
0:02:21.6]} 11... Re8 {[%clk 0:02:14.6]} 12. Rd1 {[%clk 0:02:17.4]} 12... Nf8
{[%clk 0:01:53.9]} 13. Nbd2 {[%clk 0:02:11]} 13... Bd7 {[%clk 0:01:48.5]} 14.
Nf1 {[%clk 0:02:09.8]} 14... Qc7 {[%clk 0:01:43.9]} 15. Ng3 {[%clk 0:02:05.6]}
15... g6 {[%clk 0:01:32.2]} 16. Bg5 {[%clk 0:01:53.3]} 16... Bg7 {[%clk
0:01:28.5]} 17. Rd2 {[%clk 0:01:40.9]} 17... a6 {[%clk 0:01:28.4]} 18. Ba4
{[%clk 0:01:35.9]} 18... Ne7 {[%clk 0:01:16.2]} 19. Bxd7 {[%clk 0:01:34]} 19...
Qxd7 {[%clk 0:01:15.8]} 20. Rad1 {[%clk 0:01:25.7]} 20... Rac8 {[%clk
0:01:01.7]} 21. Ne5 {[%clk 0:01:17.2]} 21... Qc7 {[%clk 0:00:56]} 22. Bxe7
{[%clk 0:00:53.8]} 22... Rxe7 {[%clk 0:00:54]} 23. Nd3 {[%clk 0:00:53]} 23...
Nd7 {[%clk 0:00:38.7]} 24. Nf4 {[%clk 0:00:39.1]} 24... Qxf4 {[%clk 0:00:36.3]}
25. Rxd5 {[%clk 0:00:36.5]} 25... Nxc5 {[%clk 0:00:27.7]} 26. Rd6 {[%clk
0:00:24]} 26... Ree8 {[%clk 0:00:20.1]} 27. b4 {[%clk 0:00:20.5]} 27... Na4
{[%clk 0:00:18.1]} 28. Rxe6 {[%clk 0:00:18.7]} 28... Rf8 {[%clk 0:00:15.9]} 29.
Rd7 {[%clk 0:00:10.1]} 29... Nxc3 {[%clk 0:00:13.7]} 30. Qe1 {[%clk 0:00:07.3]}
30... Rf7 {[%clk 0:00:03.3]} 31. Ree7 {[%clk 0:00:07.1]} 31... Rcf8 {[%clk
0:00:02.3]} 32. Rxf7 {[%clk 0:00:06.7]} 32... Rxf7 {[%clk 0:00:03.2]} 33. Qe8+
{[%clk 0:00:03.1]} 33... Rf8 {[%clk 0:00:02]} 34. Qe7 {[%clk 0:00:02.6]} 34...
Qxf2+ {[%clk 0:00:01.7]} 35. Kh1 {[%clk 0:00:01.8]} 35... Qf1+ {[%clk
0:00:02.6]} 36. Nxf1 {[%clk 0:00:01.7]} 36... Rxf1# {[%clk 0:00:03.5]} 0-1